[Event "*** Titled Tuesday Blitz"]
[Site "Chess.com"]
[Date "2021.03.16"]
[Round "11"]
[White "LubovMarkelova"]
[Black "ChelsieMonica"]
[Result "1/2-1/2"]
[WhiteElo "2252"]
[BlackElo "2347"]
[TimeControl "180+1"]
[EndTime "12:06:09 PDT"]
[Termination "Game drawn by repetition"]

1. Nf3 {[%clk 0:03:00.9]} 1... Nf6 {[%clk 0:02:58.1]} 2. c4 {[%clk 0:03:00.4]}
2... c5 {[%clk 0:02:59]} 3. Nc3 {[%clk 0:02:59.7]} 3... Nc6 {[%clk 0:02:59.9]}
4. g3 {[%clk 0:02:59.1]} 4... g6 {[%clk 0:03:00.5]} 5. Bg2 {[%clk 0:02:59]} 5...
Bg7 {[%clk 0:03:01.4]} 6. O-O {[%clk 0:02:58.9]} 6... O-O {[%clk 0:03:02.3]} 7.
d4 {[%clk 0:02:56.6]} 7... cxd4 {[%clk 0:03:03.2]} 8. Nxd4 {[%clk 0:02:56.2]}
8... e5 {[%clk 0:03:03.3]} 9. Ndb5 {[%clk 0:02:51.4]} 9... a6 {[%clk 0:03:01.6]}
10. Nd6 {[%clk 0:02:50.2]} 10... Ne8 {[%clk 0:02:49.2]} 11. Nce4 {[%clk
0:02:35]} 11... Nxd6 {[%clk 0:02:47.5]} 12. Nxd6 {[%clk 0:02:33.4]} 12... Qb6
{[%clk 0:02:45.4]} 13. Be3 {[%clk 0:02:21.1]} 13... Nd4 {[%clk 0:02:42.8]} 14.
Nxc8 {[%clk 0:02:17.9]} 14... Raxc8 {[%clk 0:02:42.7]} 15. b3 {[%clk 0:02:13]}
15... d6 {[%clk 0:02:39.6]} 16. Bxd4 {[%clk 0:02:03.1]} 16... exd4 {[%clk
0:02:38.8]} 17. Qd3 {[%clk 0:02:02.6]} 17... Rfe8 {[%clk 0:02:38.2]} 18. Bd5
{[%clk 0:01:59.5]} 18... Re7 {[%clk 0:02:37.5]} 19. Rad1 {[%clk 0:01:56.2]}
19... Rce8 {[%clk 0:02:37.6]} 20. Bf3 {[%clk 0:01:51.1]} 20... a5 {[%clk
0:02:36.9]} 21. h4 {[%clk 0:01:47]} 21... Qc5 {[%clk 0:02:34.5]} 22. h5 {[%clk
0:01:45.3]} 22... gxh5 {[%clk 0:02:34]} 23. Kg2 {[%clk 0:01:41.6]} 23... h4
{[%clk 0:02:33.5]} 24. Rh1 {[%clk 0:01:41.2]} 24... Bf6 {[%clk 0:02:27.9]} 25.
Rde1 {[%clk 0:01:22.6]} 25... Kh8 {[%clk 0:02:26.6]} 26. Bd5 {[%clk 0:01:21.7]}
26... Re5 {[%clk 0:02:19.2]} 27. Qf3 {[%clk 0:01:19.9]} 27... Bd8 {[%clk
0:02:04.5]} 28. Qxf7 {[%clk 0:01:16.3]} 28... b5 {[%clk 0:01:57.7]} 29. Rh3
{[%clk 0:00:57.8]} 29... bxc4 {[%clk 0:01:57.1]} 30. bxc4 {[%clk 0:00:57.1]}
30... d3 {[%clk 0:01:56.9]} 31. Reh1 {[%clk 0:00:50.5]} 31... dxe2 {[%clk
0:01:53.7]} 32. Rxh4 {[%clk 0:00:49]} 32... Bxh4 {[%clk 0:01:53.8]} 33. Rxh4
{[%clk 0:00:47]} 33... e1=N+ {[%clk 0:01:06.2]} 34. Kh1 {[%clk 0:00:35]} 34...
h5 {[%clk 0:00:22.7]} 35. Rxh5+ {[%clk 0:00:23]} 35... Rxh5+ {[%clk 0:00:22]}
36. Qxh5+ {[%clk 0:00:22.3]} 36... Kg7 {[%clk 0:00:22.1]} 37. Qxe8 {[%clk
0:00:12.6]} 37... Qxf2 {[%clk 0:00:21.4]} 38. Qg8+ {[%clk 0:00:12]} 38... Kh6
{[%clk 0:00:21.3]} 39. Qh8+ {[%clk 0:00:11.3]} 39... Kg5 {[%clk 0:00:18.9]} 40.
Qh4+ {[%clk 0:00:06.9]} 40... Kg6 {[%clk 0:00:15.6]} 41. Qg4+ {[%clk 0:00:04.2]}
41... Kf6 {[%clk 0:00:15.4]} 42. Qf4+ {[%clk 0:00:04]} 42... Qxf4 {[%clk
0:00:14.8]} 43. gxf4 {[%clk 0:00:03.4]} 43... Nd3 {[%clk 0:00:15.7]} 44. f5
{[%clk 0:00:02.7]} 44... Kxf5 {[%clk 0:00:15.3]} 45. Kg2 {[%clk 0:00:03.6]}
45... Nf4+ {[%clk 0:00:14.2]} 46. Kf3 {[%clk 0:00:03.9]} 46... Nxd5 {[%clk
0:00:15.1]} 47. cxd5 {[%clk 0:00:04.4]} 47... Ke5 {[%clk 0:00:16]} 48. Ke3
{[%clk 0:00:04.6]} 48... Kxd5 {[%clk 0:00:16.9]} 49. Kd3 {[%clk 0:00:05.4]}
49... Kc5 {[%clk 0:00:17.3]} 50. Kc3 {[%clk 0:00:06.3]} 50... d5 {[%clk
0:00:17.3]} 51. Kd3 {[%clk 0:00:07.2]} 51... d4 {[%clk 0:00:16.7]} 52. Kd2
{[%clk 0:00:06.3]} 52... Kc4 {[%clk 0:00:17.6]} 53. Kc2 {[%clk 0:00:06.2]} 53...
a4 {[%clk 0:00:16.8]} 54. Kd2 {[%clk 0:00:05.5]} 54... a3 {[%clk 0:00:16.5]} 55.
Kc2 {[%clk 0:00:05.1]} 55... d3+ {[%clk 0:00:16.5]} 56. Kd2 {[%clk 0:00:05]}
56... Kd4 {[%clk 0:00:17.2]} 57. Kd1 {[%clk 0:00:04.8]} 57... Kc3 {[%clk
0:00:15.6]} 58. Kc1 {[%clk 0:00:04.8]} 58... Kb4 {[%clk 0:00:15.6]} 59. Kd2
{[%clk 0:00:04.4]} 59... Kc4 {[%clk 0:00:16.5]} 60. Kd1 {[%clk 0:00:04.5]} 60...
Kd5 {[%clk 0:00:16.4]} 61. Kd2 {[%clk 0:00:04.1]} 61... Kd4 {[%clk 0:00:16.7]}
62. Kd1 {[%clk 0:00:04.5]} 62... Kc4 {[%clk 0:00:16.1]} 63. Kd2 {[%clk
0:00:04.3]} 63... Kd4 {[%clk 0:00:16.1]} 1/2-1/2

[Event "*** Titled Tuesday Blitz"]
[Site "Chess.com"]
[Date "2021.03.16"]
[Round "11"]
[White "djano"]
[Black "Meri-Arabidze"]
[Result "1/2-1/2"]
[WhiteElo "2489"]
[BlackElo "2638"]
[TimeControl "180+1"]
[EndTime "12:06:14 PDT"]
[Termination "Game drawn by repetition"]

1. e4 {[%clk 0:03:00.9]} 1... c5 {[%clk 0:02:57.2]} 2. Nc3 {[%clk 0:03:00.2]}
2... e6 {[%clk 0:02:58.1]} 3. f4 {[%clk 0:02:56.2]} 3... Nc6 {[%clk 0:02:58.3]}
4. Nf3 {[%clk 0:02:55.5]} 4... a6 {[%clk 0:02:59]} 5. d4 {[%clk 0:02:55.7]} 5...
d5 {[%clk 0:02:58.8]} 6. Be3 {[%clk 0:02:38.6]} 6... Nf6 {[%clk 0:02:54.8]} 7.
e5 {[%clk 0:02:34.7]} 7... Ng4 {[%clk 0:02:54.8]} 8. Bg1 {[%clk 0:02:34.9]} 8...
cxd4 {[%clk 0:02:49.5]} 9. Nxd4 {[%clk 0:02:34.7]} 9... h5 {[%clk 0:02:48]} 10.
h3 {[%clk 0:02:20.8]} 10... Qh4+ {[%clk 0:02:46.1]} 11. Kd2 {[%clk 0:02:20.4]}
11... Nf2 {[%clk 0:02:40.5]} 12. Bxf2 {[%clk 0:02:06.3]} 12... Qxf2+ {[%clk
0:02:39.8]} 13. Nde2 {[%clk 0:02:04.1]} 13... Bc5 {[%clk 0:02:35.3]} 14. Kc1
{[%clk 0:01:58.8]} 14... Be3+ {[%clk 0:02:31.8]} 15. Kb1 {[%clk 0:01:58.7]}
15... Bxf4 {[%clk 0:02:32.5]} 16. Nxf4 {[%clk 0:01:18.8]} 16... Qxf4 {[%clk
0:02:33.4]} 17. Bd3 {[%clk 0:01:19.1]} 17... Qxe5 {[%clk 0:02:29.7]} 18. Re1
{[%clk 0:01:18.5]} 18... Qd4 {[%clk 0:02:26]} 19. Qf3 {[%clk 0:01:12.3]} 19...
Ne5 {[%clk 0:02:18.2]} 20. Qg3 {[%clk 0:01:04.9]} 20... Nxd3 {[%clk 0:02:18]}
21. cxd3 {[%clk 0:01:05.8]} 21... h4 {[%clk 0:02:18.1]} 22. Qf3 {[%clk 0:01:03]}
22... Kf8 {[%clk 0:02:10.5]} 23. a4 {[%clk 0:00:57.7]} 23... Rh6 {[%clk
0:02:08.9]} 24. Ra3 {[%clk 0:00:56.3]} 24... Bd7 {[%clk 0:02:07.2]} 25. Ne2
{[%clk 0:00:47.5]} 25... Qb4 {[%clk 0:01:59.1]} 26. Rc1 {[%clk 0:00:42.9]} 26...
Rf6 {[%clk 0:01:44.9]} 27. Qe3 {[%clk 0:00:40.9]} 27... Bxa4 {[%clk 0:01:38.3]}
28. Rac3 {[%clk 0:00:26.5]} 28... Bc6 {[%clk 0:01:36]} 29. Nd4 {[%clk
0:00:25.7]} 29... Rb8 {[%clk 0:01:29.9]} 30. Rb3 {[%clk 0:00:23.5]} 30... Qd6
{[%clk 0:01:19.5]} 31. Nxc6 {[%clk 0:00:20.5]} 31... bxc6 {[%clk 0:01:20.2]} 32.
Rxc6 {[%clk 0:00:19.1]} 32... Rf1+ {[%clk 0:00:56]} 33. Ka2 {[%clk 0:00:19.3]}
33... Qxc6 {[%clk 0:00:56]} 34. Rxb8+ {[%clk 0:00:18.5]} 34... Ke7 {[%clk
0:00:56.4]} 35. Qg5+ {[%clk 0:00:10.8]} 35... Rf6 {[%clk 0:00:47.7]} 36. Rb3
{[%clk 0:00:03.6]} 36... Qa4+ {[%clk 0:00:45.5]} 37. Ra3 {[%clk 0:00:03.8]}
37... Qb5 {[%clk 0:00:39.9]} 38. Qe3 {[%clk 0:00:03.6]} 38... Rf5 {[%clk
0:00:28.5]} 39. Qa7+ {[%clk 0:00:03.3]} 39... Kf6 {[%clk 0:00:28.7]} 40. Rxa6
{[%clk 0:00:04]} 40... Rf4 {[%clk 0:00:22.7]} 41. Ra3 {[%clk 0:00:02.7]} 41...
Rb4 {[%clk 0:00:21.9]} 42. Qf2+ {[%clk 0:00:02.8]} 42... Kg6 {[%clk 0:00:21]}
43. Qc2 {[%clk 0:00:01.6]} 43... d4 {[%clk 0:00:19.4]} 44. Qd2 {[%clk
0:00:01.7]} 44... Qd5+ {[%clk 0:00:19.3]} 45. Ka1 {[%clk 0:00:01.3]} 45... Qb5
{[%clk 0:00:18.6]} 46. Qe2 {[%clk 0:00:01.3]} 46... Ra4 {[%clk 0:00:15.2]} 47.
Qe4+ {[%clk 0:00:01.4]} 47... Kf6 {[%clk 0:00:13.5]} 48. Qf4+ {[%clk 0:00:01.7]}
48... Ke7 {[%clk 0:00:13.5]} 49. Qc7+ {[%clk 0:00:01.9]} 49... Kf6 {[%clk
0:00:14]} 50. Qf4+ {[%clk 0:00:02.1]} 50... Kg6 {[%clk 0:00:14.1]} 51. Qg4+
{[%clk 0:00:02.6]} 51... Kh7 {[%clk 0:00:11.7]} 52. Qxh4+ {[%clk 0:00:03.1]}
52... Kg8 {[%clk 0:00:12.1]} 53. Qd8+ {[%clk 0:00:02.7]} 53... Kh7 {[%clk
0:00:12.5]} 54. Qh4+ {[%clk 0:00:03.1]} 54... Kg6 {[%clk 0:00:13.1]} 55. Qg4+
{[%clk 0:00:03.1]} 55... Kf6 {[%clk 0:00:13.5]} 56. Qf4+ {[%clk 0:00:03.5]}
56... Ke7 {[%clk 0:00:13.2]} 57. Qc7+ {[%clk 0:00:03.6]} 57... Kf6 {[%clk
0:00:13.4]} 58. Qf4+ {[%clk 0:00:03.7]} 58... Ke7 {[%clk 0:00:13.2]} 59. Qc7+
{[%clk 0:00:03.2]} 59... Ke8 {[%clk 0:00:09]} 60. Qc8+ {[%clk 0:00:03]} 60...
Ke7 {[%clk 0:00:09.6]} 61. Qc7+ {[%clk 0:00:03.1]} 1/2-1/2

[Event "*** Titled Tuesday Blitz"]
[Site "Chess.com"]
[Date "2021.03.16"]
[Round "11"]
[White "DrMamaliga"]
[Black "Szparu"]
[Result "0-1"]
[WhiteElo "2384"]
[BlackElo "2613"]
[TimeControl "180+1"]
[EndTime "12:06:16 PDT"]
[Termination "Szparu won on time"]

1. c4 {[%clk 0:03:00.9]} 1... Nf6 {[%clk 0:02:58.4]} 2. Nf3 {[%clk 0:03:01.4]}
2... e6 {[%clk 0:02:56.7]} 3. b3 {[%clk 0:03:01.6]} 3... d5 {[%clk 0:02:56.2]}
4. g3 {[%clk 0:03:02.5]} 4... Be7 {[%clk 0:02:54.7]} 5. Bg2 {[%clk 0:03:03]}
5... O-O {[%clk 0:02:54.5]} 6. Bb2 {[%clk 0:03:03.5]} 6... c5 {[%clk 0:02:52.8]}
7. O-O {[%clk 0:03:03.9]} 7... d4 {[%clk 0:02:52.9]} 8. e3 {[%clk 0:03:04.5]}
8... Nc6 {[%clk 0:02:53.2]} 9. exd4 {[%clk 0:03:04.8]} 9... cxd4 {[%clk
0:02:53.5]} 10. Re1 {[%clk 0:03:04.7]} 10... Qb6 {[%clk 0:02:37.4]} 11. d3
{[%clk 0:02:59.6]} 11... Nd7 {[%clk 0:02:28.8]} 12. Nbd2 {[%clk 0:02:57.5]}
12... Nc5 {[%clk 0:02:17.4]} 13. Ne4 {[%clk 0:02:54.6]} 13... Nxe4 {[%clk
0:02:13.4]} 14. Rxe4 {[%clk 0:02:55.5]} 14... Rd8 {[%clk 0:02:05]} 15. a3 {[%clk
0:02:53.3]} 15... a5 {[%clk 0:02:01]} 16. Qc2 {[%clk 0:02:50.4]} 16... f5 {[%clk
0:01:49.6]} 17. Re2 {[%clk 0:02:48.9]} 17... Bf6 {[%clk 0:01:47.9]} 18. Rae1
{[%clk 0:02:43]} 18... Bd7 {[%clk 0:01:38.3]} 19. Bc1 {[%clk 0:02:41.2]} 19...
h6 {[%clk 0:01:35.2]} 20. Bf4 {[%clk 0:02:40.5]} 20... g5 {[%clk 0:00:56.6]} 21.
Be5 {[%clk 0:02:35.8]} 21... Nxe5 {[%clk 0:00:55.5]} 22. Nxe5 {[%clk 0:02:36.7]}
22... Bc8 {[%clk 0:00:50]} 23. f4 {[%clk 0:02:25.9]} 23... Qc5 {[%clk
0:00:44.2]} 24. Kh1 {[%clk 0:02:19.1]} 24... g4 {[%clk 0:00:36.4]} 25. Qb2
{[%clk 0:02:17.9]} 25... Be7 {[%clk 0:00:33.1]} 26. b4 {[%clk 0:01:49.7]} 26...
axb4 {[%clk 0:00:31.5]} 27. axb4 {[%clk 0:01:50.6]} 27... Qxb4 {[%clk
0:00:31.7]} 28. Qxb4 {[%clk 0:01:51.5]} 28... Bxb4 {[%clk 0:00:31.6]} 29. Rb1
{[%clk 0:01:52.4]} 29... Bc3 {[%clk 0:00:31.2]} 30. Kg1 {[%clk 0:01:30.4]} 30...
Ra7 {[%clk 0:00:26.9]} 31. Rb6 {[%clk 0:01:09.4]} 31... Ba5 {[%clk 0:00:23.2]}
32. Rb5 {[%clk 0:01:07.9]} 32... Bc7 {[%clk 0:00:19.4]} 33. Reb2 {[%clk
0:01:01.2]} 33... Bxe5 {[%clk 0:00:12.1]} 34. Rxe5 {[%clk 0:01:02.1]} 34... Kf7
{[%clk 0:00:10.2]} 35. h4 {[%clk 0:00:43.8]} 35... gxh3 {[%clk 0:00:08.7]} 36.
Bxh3 {[%clk 0:00:43.7]} 36... Rg8 {[%clk 0:00:08.7]} 37. Kf2 {[%clk 0:00:42.4]}
37... Ra3 {[%clk 0:00:08.9]} 38. Bf1 {[%clk 0:00:37.1]} 38... h5 {[%clk
0:00:06.1]} 39. Be2 {[%clk 0:00:35.9]} 39... Rh8 {[%clk 0:00:05.3]} 40. Rb1
{[%clk 0:00:27.7]} 40... h4 {[%clk 0:00:05.3]} 41. g4 {[%clk 0:00:16.7]} 41...
fxg4 {[%clk 0:00:04.8]} 42. Bxg4 {[%clk 0:00:17]} 42... Rxd3 {[%clk 0:00:04.8]}
43. f5 {[%clk 0:00:16.6]} 43... exf5 {[%clk 0:00:04.8]} 44. Bxf5 {[%clk
0:00:16.7]} 44... Bxf5 {[%clk 0:00:03.9]} 45. Rxf5+ {[%clk 0:00:17.6]} 45... Kg6
{[%clk 0:00:04.1]} 46. Rd5 {[%clk 0:00:16.8]} 46... Rf8+ {[%clk 0:00:02.4]} 47.
Kg2 {[%clk 0:00:16.5]} 47... Rg3+ {[%clk 0:00:02.7]} 48. Kh1 {[%clk 0:00:15]}
48... Rg5 {[%clk 0:00:02.9]} 49. Rb6+ {[%clk 0:00:14.6]} 49... Kh5 {[%clk
0:00:03.2]} 50. Rxb7 {[%clk 0:00:11.9]} 50... Rf1+ {[%clk 0:00:02.5]} 51. Kh2
{[%clk 0:00:12]} 51... Rf2+ {[%clk 0:00:03.2]} 52. Kh1 {[%clk 0:00:12.1]} 52...
Rxd5 {[%clk 0:00:03.4]} 53. cxd5 {[%clk 0:00:12.4]} 53... d3 {[%clk 0:00:04.3]}
54. Rb1 {[%clk 0:00:08.2]} 54... Rf4 {[%clk 0:00:04.1]} 55. Kg2 {[%clk 0:00:05]}
55... Kg4 {[%clk 0:00:04.1]} 56. d6 {[%clk 0:00:03.9]} 56... Rd4 {[%clk
0:00:04.3]} 57. d7 {[%clk 0:00:04.3]} 57... Rxd7 {[%clk 0:00:04.5]} 58. Rb4+
{[%clk 0:00:04.7]} 58... Kg5 {[%clk 0:00:04.7]} 59. Rb1 {[%clk 0:00:04.3]} 59...
d2 {[%clk 0:00:04.9]} 60. Rd1 {[%clk 0:00:04.6]} 60... Kg4 {[%clk 0:00:05.4]}
61. Kh2 {[%clk 0:00:03.9]} 61... h3 {[%clk 0:00:05.9]} 62. Rg1+ {[%clk 0:00:03]}
62... Kf3 {[%clk 0:00:06.3]} 63. Rd1 {[%clk 0:00:03.9]} 63... Ke2 {[%clk
0:00:06.4]} 64. Kxh3 {[%clk 0:00:03.9]} 64... Kxd1 {[%clk 0:00:06.6]} 0-1

[Event "*** Titled Tuesday Blitz"]
[Site "Chess.com"]
[Date "2021.03.16"]
[Round "11"]
[White "Das_Virus_2020"]
[Black "CrazyMartian"]
[Result "1-0"]
[WhiteElo "2475"]
[BlackElo "2267"]
[TimeControl "180+1"]
[EndTime "12:06:24 PDT"]
[Termination "Das_Virus_2020 won by resignation"]

1. e4 {[%clk 0:03:00.9]} 1... c5 {[%clk 0:03:00.1]} 2. c3 {[%clk 0:02:56.4]}
2... d5 {[%clk 0:02:59.8]} 3. exd5 {[%clk 0:02:56.6]} 3... Nf6 {[%clk
0:02:58.9]} 4. d4 {[%clk 0:02:54.8]} 4... Nxd5 {[%clk 0:02:56.2]} 5. Nf3 {[%clk
0:02:52.6]} 5... e6 {[%clk 0:02:55.5]} 6. Be2 {[%clk 0:02:47.7]} 6... cxd4
{[%clk 0:02:55.6]} 7. Nxd4 {[%clk 0:02:44.8]} 7... Bd7 {[%clk 0:02:48.2]} 8. O-O
{[%clk 0:02:43.5]} 8... Nc6 {[%clk 0:02:48.2]} 9. Bf3 {[%clk 0:02:40.6]} 9...
Nxd4 {[%clk 0:02:44.6]} 10. Qxd4 {[%clk 0:02:41.5]} 10... Bc6 {[%clk 0:02:42.8]}
11. Nd2 {[%clk 0:02:40.5]} 11... Be7 {[%clk 0:02:37.6]} 12. Nc4 {[%clk
0:02:39.6]} 12... O-O {[%clk 0:02:26.5]} 13. Re1 {[%clk 0:02:37]} 13... Bf6
{[%clk 0:02:17.6]} 14. Qg4 {[%clk 0:02:34]} 14... Ne7 {[%clk 0:02:12]} 15. Be3
{[%clk 0:02:27]} 15... Bxf3 {[%clk 0:02:04.8]} 16. Qxf3 {[%clk 0:02:27.9]} 16...
Qd5 {[%clk 0:01:57.9]} 17. Qxd5 {[%clk 0:01:44.1]} 17... Nxd5 {[%clk 0:01:56.8]}
18. Nd6 {[%clk 0:01:43.2]} 18... b6 {[%clk 0:01:37.9]} 19. Ne4 {[%clk
0:01:39.5]} 19... Nxe3 {[%clk 0:01:30.8]} 20. Rxe3 {[%clk 0:01:36.4]} 20... Rfd8
{[%clk 0:01:29.7]} 21. Kf1 {[%clk 0:01:34.3]} 21... Rd7 {[%clk 0:01:27.2]} 22.
Ree1 {[%clk 0:01:24.7]} 22... Rad8 {[%clk 0:01:26.1]} 23. Ke2 {[%clk 0:01:24.7]}
23... Be7 {[%clk 0:01:24.7]} 24. Red1 {[%clk 0:01:23.5]} 24... f5 {[%clk
0:01:22.5]} 25. Rxd7 {[%clk 0:01:21.3]} 25... Rxd7 {[%clk 0:01:22]} 26. Nd2
{[%clk 0:01:20.8]} 26... g5 {[%clk 0:01:03.7]} 27. Rd1 {[%clk 0:01:03.8]} 27...
Kf7 {[%clk 0:00:56.3]} 28. a4 {[%clk 0:01:00.7]} 28... e5 {[%clk 0:00:44.3]} 29.
f3 {[%clk 0:00:55.1]} 29... Ke6 {[%clk 0:00:43.2]} 30. Re1 {[%clk 0:00:52]}
30... h5 {[%clk 0:00:20.8]} 31. h3 {[%clk 0:00:50]} 31... h4 {[%clk 0:00:20.9]}
32. Nc4 {[%clk 0:00:48.8]} 32... Bf6 {[%clk 0:00:19.1]} 33. Ne3 {[%clk 0:00:44]}
33... a6 {[%clk 0:00:16.8]} 34. Ra1 {[%clk 0:00:39.6]} 34... Rd6 {[%clk
0:00:13.5]} 35. Rc1 {[%clk 0:00:29.9]} 35... e4 {[%clk 0:00:11.7]} 36. fxe4
{[%clk 0:00:27.5]} 36... fxe4 {[%clk 0:00:12.6]} 37. Ng4 {[%clk 0:00:23.2]}
37... Be5 {[%clk 0:00:10.4]} 38. Rd1 {[%clk 0:00:19.7]} 38... Rxd1 {[%clk
0:00:09.7]} 39. Kxd1 {[%clk 0:00:19.7]} 39... Bf4 {[%clk 0:00:10.3]} 40. Ke2
{[%clk 0:00:16.8]} 40... Kd5 {[%clk 0:00:09.3]} 41. b3 {[%clk 0:00:16.2]} 41...
b5 {[%clk 0:00:08.7]} 42. axb5 {[%clk 0:00:15.5]} 42... axb5 {[%clk 0:00:09.6]}
43. Ne3+ {[%clk 0:00:14.9]} 43... Kc5 {[%clk 0:00:09]} 44. c4 {[%clk 0:00:09.4]}
44... bxc4 {[%clk 0:00:06]} 45. Nxc4 {[%clk 0:00:08.1]} 45... Kb4 {[%clk
0:00:05.3]} 46. Nd2 {[%clk 0:00:06.8]} 46... e3 {[%clk 0:00:05.3]} 47. Nc4
{[%clk 0:00:06.4]} 47... Kxb3 {[%clk 0:00:05]} 48. Nxe3 {[%clk 0:00:06.8]} 48...
Kc3 {[%clk 0:00:04.5]} 49. Nd5+ {[%clk 0:00:06.1]} 49... Kd4 {[%clk 0:00:04.7]}
50. Nxf4 {[%clk 0:00:05.9]} 50... gxf4 {[%clk 0:00:05.6]} 51. Kf3 {[%clk
0:00:06.3]} 51... Ke5 {[%clk 0:00:05.6]} 52. Kg4 {[%clk 0:00:06.3]} 52... Ke4
{[%clk 0:00:05.2]} 53. Kxh4 {[%clk 0:00:06.4]} 53... Ke3 {[%clk 0:00:03.2]} 54.
Kg4 {[%clk 0:00:06.6]} 54... Kf2 {[%clk 0:00:03.1]} 55. Kxf4 {[%clk 0:00:06.7]}
55... Kxg2 {[%clk 0:00:03.7]} 56. h4 {[%clk 0:00:07]} 56... Kh3 {[%clk
0:00:04.3]} 57. h5 {[%clk 0:00:07.9]} 57... Kh4 {[%clk 0:00:05.2]} 58. h6 {[%clk
0:00:08.8]} 58... Kh5 {[%clk 0:00:06.1]} 59. h7 {[%clk 0:00:09.7]} 59... Kg6
{[%clk 0:00:07]} 60. h8=Q {[%clk 0:00:10.6]} 60... Kf7 {[%clk 0:00:07.6]} 61.
Qh6 {[%clk 0:00:10.2]} 61... Ke7 {[%clk 0:00:08.5]} 62. Ke5 {[%clk 0:00:10.5]}
62... Kd7 {[%clk 0:00:09.4]} 63. Qg7+ {[%clk 0:00:10.5]} 63... Kc6 {[%clk
0:00:09.8]} 64. Qf6+ {[%clk 0:00:09.6]} 64... Kb5 {[%clk 0:00:09.7]} 65. Qd6
{[%clk 0:00:09.6]} 65... Kc4 {[%clk 0:00:09.9]} 66. Qd4+ {[%clk 0:00:09.2]}
66... Kb5 {[%clk 0:00:09.7]} 67. Qc3 {[%clk 0:00:09.2]} 67... Kb6 {[%clk
0:00:09.8]} 68. Kd5 {[%clk 0:00:09.1]} 68... Kb7 {[%clk 0:00:10.3]} 69. Qc6+
{[%clk 0:00:08.9]} 69... Kb8 {[%clk 0:00:10.2]} 70. Qd7 {[%clk 0:00:09]} 70...
Ka8 {[%clk 0:00:10]} 71. Kc6 {[%clk 0:00:09.1]} 1-0

[Event "*** Titled Tuesday Blitz"]
[Site "Chess.com"]
[Date "2021.03.16"]
[Round "11"]
[White "GMKrikor"]
[Black "XDPS"]
[Result "0-1"]
[WhiteElo "2757"]
[BlackElo "2817"]
[TimeControl "180+1"]
[EndTime "12:06:25 PDT"]
[Termination "XDPS won on time"]

1. Nf3 {[%clk 0:02:54]} 1... g6 {[%clk 0:02:59.6]} 2. c4 {[%clk 0:02:50.8]} 2...
Bg7 {[%clk 0:02:59.7]} 3. e4 {[%clk 0:02:50.6]} 3... d6 {[%clk 0:02:57.4]} 4. d4
{[%clk 0:02:50.5]} 4... Nd7 {[%clk 0:02:55.9]} 5. Nc3 {[%clk 0:02:48.8]} 5... e5
{[%clk 0:02:56.1]} 6. Be3 {[%clk 0:02:48.9]} 6... Ne7 {[%clk 0:02:56.2]} 7. Qd2
{[%clk 0:02:33.4]} 7... O-O {[%clk 0:02:55.4]} 8. Bh6 {[%clk 0:02:32.6]} 8... f6
{[%clk 0:01:47.2]} 9. Bxg7 {[%clk 0:02:27.9]} 9... Kxg7 {[%clk 0:01:47.4]} 10.
h4 {[%clk 0:02:28.6]} 10... h5 {[%clk 0:01:45.9]} 11. O-O-O {[%clk 0:02:28.2]}
11... Nc6 {[%clk 0:01:45.1]} 12. d5 {[%clk 0:02:17.5]} 12... Ne7 {[%clk
0:01:45.2]} 13. Bd3 {[%clk 0:01:43]} 13... a5 {[%clk 0:01:43.3]} 14. Nh2 {[%clk
0:01:39.9]} 14... Nc5 {[%clk 0:01:42.9]} 15. Bc2 {[%clk 0:01:39.8]} 15... f5
{[%clk 0:01:33.3]} 16. Nf3 {[%clk 0:01:39.5]} 16... Ng8 {[%clk 0:01:29.7]} 17.
Ng5 {[%clk 0:01:39]} 17... Nh6 {[%clk 0:01:13.2]} 18. f3 {[%clk 0:01:35.4]}
18... Nf7 {[%clk 0:01:07.6]} 19. Nxf7 {[%clk 0:01:17.6]} 19... Rxf7 {[%clk
0:01:08.5]} 20. Qe3 {[%clk 0:01:14.2]} 20... fxe4 {[%clk 0:01:00.3]} 21. Nxe4
{[%clk 0:01:09.1]} 21... Nxe4 {[%clk 0:00:56.8]} 22. Bxe4 {[%clk 0:01:10]} 22...
Qf6 {[%clk 0:00:54.5]} 23. Kd2 {[%clk 0:00:57.8]} 23... b6 {[%clk 0:00:54.2]}
24. Rc1 {[%clk 0:00:57.5]} 24... Bf5 {[%clk 0:00:48.7]} 25. b3 {[%clk
0:00:54.2]} 25... Bxe4 {[%clk 0:00:39.6]} 26. Qxe4 {[%clk 0:00:55.1]} 26... Qe7
{[%clk 0:00:39.4]} 27. g3 {[%clk 0:00:45.1]} 27... Raf8 {[%clk 0:00:38.6]} 28.
Rcf1 {[%clk 0:00:40.3]} 28... Rf5 {[%clk 0:00:35.2]} 29. Ke2 {[%clk 0:00:39.5]}
29... Qd7 {[%clk 0:00:26.4]} 30. Qd3 {[%clk 0:00:34.9]} 30... Re8 {[%clk
0:00:22]} 31. Kd2 {[%clk 0:00:28.9]} 31... Qf7 {[%clk 0:00:19.9]} 32. a4 {[%clk
0:00:23]} 32... Qf6 {[%clk 0:00:18.3]} 33. Qe4 {[%clk 0:00:21.6]} 33... Rf8
{[%clk 0:00:18.5]} 34. Ke2 {[%clk 0:00:21.9]} 34... Qd8 {[%clk 0:00:17.5]} 35.
Rf2 {[%clk 0:00:20.2]} 35... Re8 {[%clk 0:00:17.8]} 36. Kd2 {[%clk 0:00:16.8]}
36... Qd7 {[%clk 0:00:16.2]} 37. Re1 {[%clk 0:00:16.8]} 37... Qf7 {[%clk
0:00:14.6]} 38. Ref1 {[%clk 0:00:16.4]} 38... Qf6 {[%clk 0:00:14.2]} 39. Ke2
{[%clk 0:00:16.8]} 39... Re7 {[%clk 0:00:12.8]} 40. Kd2 {[%clk 0:00:17.2]} 40...
Qf8 {[%clk 0:00:12.7]} 41. Re1 {[%clk 0:00:16.4]} 41... Ref7 {[%clk 0:00:12.5]}
42. Ref1 {[%clk 0:00:16.4]} 42... Qc8 {[%clk 0:00:12.5]} 43. Ke2 {[%clk
0:00:16.3]} 43... Qd7 {[%clk 0:00:12.6]} 44. Kd2 {[%clk 0:00:16.1]} 44... Re7
{[%clk 0:00:13]} 45. Re1 {[%clk 0:00:15.6]} 45... Qe8 {[%clk 0:00:13]} 46. Ref1
{[%clk 0:00:15.6]} 46... Qf8 {[%clk 0:00:12.9]} 47. Re1 {[%clk 0:00:13.5]} 47...
Qf6 {[%clk 0:00:09.6]} 48. Ref1 {[%clk 0:00:12.7]} 48... g5 {[%clk 0:00:09.3]}
49. hxg5 {[%clk 0:00:12.7]} 49... Qxg5+ {[%clk 0:00:09.7]} 50. Qe3 {[%clk
0:00:08.2]} 50... Qxg3 {[%clk 0:00:04.1]} 51. Qe2 {[%clk 0:00:07.8]} 51... Qf4+
{[%clk 0:00:04.1]} 52. Kc2 {[%clk 0:00:07.8]} 52... Kh6 {[%clk 0:00:04.7]} 53.
Rg2 {[%clk 0:00:07]} 53... Rg7 {[%clk 0:00:05.1]} 54. Rxg7 {[%clk 0:00:06.7]}
54... Kxg7 {[%clk 0:00:06]} 55. Rh1 {[%clk 0:00:07.1]} 55... Rg5 {[%clk
0:00:06.4]} 56. Rf1 {[%clk 0:00:03]} 56... Kh6 {[%clk 0:00:06.7]} 57. Qd3 {[%clk
0:00:03.1]} 57... Rg2+ {[%clk 0:00:06.6]} 58. Kb1 {[%clk 0:00:03.2]} 58... Qh2
{[%clk 0:00:06.7]} 59. Kc1 {[%clk 0:00:02.6]} 59... Qf4+ {[%clk 0:00:05.8]} 60.
Kb1 {[%clk 0:00:02.6]} 60... Qd2 {[%clk 0:00:06.3]} 61. Qxd2+ {[%clk 0:00:02.9]}
61... Rxd2 {[%clk 0:00:07.2]} 62. f4 {[%clk 0:00:03.8]} 62... exf4 {[%clk
0:00:07.7]} 63. Rxf4 {[%clk 0:00:03.7]} 63... Kg5 {[%clk 0:00:08.3]} 64. Rf7
{[%clk 0:00:03.8]} 64... h4 {[%clk 0:00:09]} 65. Rxc7 {[%clk 0:00:04]} 65... h3
{[%clk 0:00:09.6]} 66. Kc1 {[%clk 0:00:02.7]} 66... Rg2 {[%clk 0:00:06.4]} 67.
Rh7 {[%clk 0:00:01.5]} 67... h2 {[%clk 0:00:06.7]} 0-1